fUSD/lending_fUSD_20251226
["ID","MTS","AMOUNT","RATE_DAILY","PERIOD"]
[399846027,1766734367859,-340.0,0.0004,45]
[399846028,1766734367871,-241248.12118227,0.0004,2]
[399846029,1766734367882,-51217.8434076,0.0004,2]
[399846030,1766734367894,-8029.85,0.0004,14]
[399846031,1766734367906,-1000.0,0.0004,2]
[399846032,1766734367919,-233.85760035,0.0004,2]
[399846033,1766734367931,-2298.14883886,0.0004,30]
[399846034,1766734367942,-160.0,0.0004,2]
[399846035,1766734367955,-151.32968096,0.0004,30]
[399846036,1766734367967,-861.96534366,0.0004,10]
[399846037,1766734367979,-10000.0,0.0004,30]
[399846038,1766734367991,-163.0,0.0004,120]
[399846039,1766734368003,-184.0,0.0004,120]
[399846040,1766734368014,-250.0,0.0004,45]
[399846041,1766734368026,-175.04324912,0.0004,120]
[399846042,1766734368038,-370.24672161,0.0004,120]
[399846043,1766734368050,-699.50027277,0.0004,120]
[399846044,1766734368062,-223.0,0.0004,120]
[399846045,1766734368075,-200.0,0.0004,120]
[399846046,1766734368087,-150.0,0.0004,120]
[399846047,1766734368100,-4041.04539585,0.0004,30]
[399846048,1766734368113,-311.56,0.0004,30]
[399846049,1766734368125,-200.0,0.0004,120]
[399846050,1766734368140,-500.0,0.0004,63]
[399846051,1766734368153,-150.0,0.0004,120]
[399846052,1766734368166,-1026.56884737,0.0004,30]
[399846053,1766734368179,-160.46363412,0.0004,2]
[399846054,1766734368192,-154.16699065,0.0004,10]
[399846055,1766734368204,-1039.29853202,0.0004,14]
[399846056,1766734368218,-2369.0844012,0.0004,120]
[399846057,1766734368230,-8663.76371197,0.0004,30]
[399846058,1766734368242,-260.0,0.0004,15]
[399846059,1766734368255,-157.52288641,0.0004,120]
[399846060,1766734368268,-200.40903474,0.0004,30]
[399846061,1766734368280,-380.99079836,0.0004,120]
[399846062,1766734368292,-5178.34766313,0.0004,120]
[399846063,1766734368303,-2500.0,0.0004,7]
[399846064,1766734368317,-1006.32709455,0.0004,7]
[399846065,1766734368329,-8150.0,0.0004,30]
[399846066,1766734368341,-232.31773553,0.0004,120]
[399846067,1766734368352,-196.73953905,0.0004,30]
[399846068,1766734368363,-6685.0,0.0004,7]
[399846069,1766734368377,-1000.0,0.0004,120]
[399846070,1766734368993,-1000.0,0.0004,120]
[399846071,1766734369015,-1285.87179391,0.0004,60]
[399846072,1766734369026,-310.85987022,0.0004,120]
[399846073,1766734369037,-210.78461004,0.0004,2]
[399846074,1766734369047,-5570.48879374,0.0004,10]
[399846075,1766734369056,-2299.99999602,0.0004,2]
[399846076,1766734369066,-150.0,0.0004,60]
[399846077,1766734369076,-500.0,0.0004,120]
[399846078,1766734369086,-2969.39,0.0004,30]
[399846079,1766734369096,-1280.33,0.0004,120]
[399846080,1766734369106,-425.73,0.0004,120]
[399846081,1766734369116,-245.47,0.0004,120]
[399846082,1766734369127,-675.21,0.0004,120]
[399846083,1766734369140,-253.0,0.0004,30]
[399846084,1766734369149,-25000.0,0.0004,120]
[399846085,1766734369160,-663.31,0.0004,120]
[399846086,1766734369170,-367.86,0.0004,120]
[399846087,1766734369182,-3018.8,0.0004,120]
[399846088,1766734369192,-208.92272806,0.00040077,120]
[399846089,1766734369202,-269.54361,0.00040088,30]
[399846090,1766734369212,-152.79,0.00040147,120]
[399846091,1766734369222,-1481.0,0.0004017,20]
[399846092,1766734369232,-152.79,0.00040247,120]
[399846093,1766734369242,-3087.51812383,0.00040276,14]
[399846094,1766734369253,-269.54361,0.00040288,30]
[399846095,1766734369263,-212.42,0.00040294,60]
[399846096,1766734369274,-152.79,0.00040347,120]
[399846097,1766734369284,-152.79,0.00040447,120]
[399846098,1766734369294,-269.54361,0.00040488,30]
[399846099,1766734369309,-163.0,0.000405,120]
[399846100,1766734369319,-214.32,0.000405,30]
[399846101,1766734369328,-968.15732539,0.000405,120]
[399846102,1766734369339,-1044.22,0.000405,120]
[399846103,1766734369348,-500.0,0.000405,120]
[399846104,1766734369358,-152.79,0.00040547,120]
[399846105,1766734369368,-184.0,0.000406,120]
[399846106,1766734369377,-10000.0,0.0004062,7]
[399846107,1766734369388,-152.79,0.00040647,120]
[399846108,1766734369398,-1077.47551539,0.00040673,120]
[399846109,1766734369408,-269.54361,0.00040688,30]
[399846110,1766734369419,-152.79,0.00040747,120]
[399846111,1766734369429,-6922.27,0.0004075,120]
[399846112,1766734369440,-153.44953895,0.000408,60]
[399846113,1766734369454,-152.79,0.00040847,120]
[399846114,1766734369464,-269.54361,0.00040888,30]
[399846115,1766734369474,-5000.0,0.000409,120]
[399846116,1766734369484,-3051.54114899,0.000409,120]
[399846117,1766734369494,-164.85997199,0.000409,120]
[399846118,1766734369504,-4273.00014005,0.00040908,34]
[399846119,1766734369514,-209.0,0.0004093,30]
[399846120,1766734369525,-152.79,0.00040947,120]
[399846121,1766734369536,-456033.47326322,0.0004098,120]
[399846122,1766734369545,-46013.86060831,0.0004098,120]
[399846123,1766734369555,-284.0,0.00040986,60]
[399846124,1766734369566,-7562.99148869,0.00040998,2]
[399846125,1766734369575,-50000.0,0.00041,41]
[399846126,1766734369586,-50000.0,0.00041,31]
[399846127,1766734369597,-50000.0,0.00041,21]
[399846128,1766734369607,-625.63140679,0.00041,30]
[399846129,1766734369617,-250.0,0.00041,45]
[399846130,1766734369627,-982.67142002,0.00041,2]
[399846131,1766734369637,-552.05169628,0.00041,30]
[399846132,1766734369647,-289.4584089,0.00041,14]
[399846133,1766734369658,-1078.36608936,0.00041,10]
[399846134,1766734369667,-1377558.56736867,0.00041,2]
[399846135,1766734369677,-150.0,0.00041,120]
[399846136,1766734369688,-500.0,0.00041,64]
[399846137,1766734369698,-573.9454702,0.00041,30]
[399846138,1766734369708,-163.4,0.00041,120]
[399846139,1766734369719,-518.15189478,0.00041,30]
[399846140,1766734369729,-238.33,0.00041,120]
[399846141,1766734369739,-155.52340469,0.00041,30]
[399846142,1766734369749,-307.88160441,0.00041,120]
[399846143,1766734369759,-1100.00817894,0.00041,120]
[399846144,1766734369769,-2913.0,0.00041,120]
[399846145,1766734369779,-1607.0,0.00041,120]
[399846146,1766734369788,-1000.0,0.00041,120]
[399846147,1766734369799,-210.0,0.00041,30]
[399846148,1766734369809,-156.46483318,0.00041,2]
[399846149,1766734369819,-150.0,0.00041,60]
[399846150,1766734369828,-500.0,0.00041,120]
[399846151,1766734369838,-1263.0,0.00041,2]
[399846152,1766734369848,-253.0,0.00041,34]
[399846153,1766734369859,-912.0,0.00041,2]
[399846154,1766734369869,-1198.0,0.00041,2]
[399846155,1766734369878,-1327.0,0.00041,2]
[399846156,1766734369888,-2430.0,0.00041,2]
[399846157,1766734369899,-3459.0,0.00041,2]
[399846158,1766734369909,-152.79,0.00041047,120]
[399846159,1766734369919,-300.0,0.00041068,22]
[399846160,1766734369928,-208.92272806,0.00041074,120]
[399846161,1766734369939,-269.54361,0.00041088,30]
[399846162,1766734369948,-6000.0,0.00041095,5]
[399846163,1766734369958,-4014.0,0.00041095,5]
[399846164,1766734369967,-500.0,0.00041095,120]
[399846165,1766734369977,-500.0,0.00041095,120]
[399846166,1766734369987,-500.0,0.00041095,120]
[399846167,1766734369997,-500.0,0.00041095,120]
[399846168,1766734370007,-3018.8,0.00041095,120]
[399846169,1766734370017,-500.0,0.00041096,120]
[399846170,1766734370027,-500.0,0.00041096,120]
[399846171,1766734370037,-500.0,0.00041096,120]
[399846172,1766734370047,-814.0,0.00041096,120]
[399846173,1766734370057,-508.23,0.00041096,120]
[399846174,1766734370067,-223.08,0.00041096,120]
[399846175,1766734370077,-457.0,0.00041096,30]
[399846176,1766734370087,-337.97991031,0.00041096,2]
[399846177,1766734370097,-258.0,0.00041096,10]
[399846178,1766734370107,-949.0,0.00041096,108]
[399846179,1766734370117,-858.5,0.00041096,60]
[399846180,1766734370128,-163.0,0.000411,120]
[399846181,1766734370141,-184.0,0.000411,120]
[399846182,1766734370151,-200.225,0.000411,120]
[399846183,1766734370161,-155.30780726,0.000411,120]
[399846184,1766734370171,-155.30780726,0.000411,120]
[399846185,1766734370182,-155.30780726,0.000411,120]
[399846186,1766734370192,-155.30780726,0.000411,120]
[399846187,1766734370202,-155.30780726,0.000411,120]
[399846188,1766734370213,-155.30780726,0.000411,120]
[399846189,1766734370224,-155.30780726,0.000411,120]
[399846190,1766734370234,-155.30780726,0.000411,120]
[399846191,1766734370244,-155.30780726,0.000411,120]
[399846192,1766734370254,-155.3,0.000411,120]
[399846193,1766734370264,-181.1924418,0.000411,120]
[399846194,1766734370274,-181.1924418,0.000411,120]
[399846195,1766734370284,-181.1924418,0.000411,120]
[399846196,1766734370294,-181.1924418,0.000411,120]
[399846197,1766734370304,-181.1924418,0.000411,120]
[399846198,1766734370314,-181.1924418,0.000411,120]
[399846199,1766734370325,-181.1924418,0.000411,120]
[399846200,1766734370334,-181.1924418,0.000411,120]
[399846201,1766734370344,-181.1924418,0.000411,120]
[399846202,1766734370354,-181.1924418,0.000411,120]
[399846203,1766734370364,-181.1924418,0.000411,120]
[399846204,1766734370374,-181.1924418,0.000411,120]
[399846205,1766734370383,-181.1924418,0.000411,120]
[399846206,1766734370393,-181.1924418,0.000411,120]
[399846207,1766734370403,-181.1924418,0.000411,120]
[399846208,1766734370412,-181.1924418,0.000411,120]
[399846209,1766734370422,-181.1924418,0.000411,120]
[399846210,1766734370432,-181.1924418,0.000411,120]
[399846211,1766734370442,-181.1924418,0.000411,120]
[399846212,1766734370451,-181.19,0.000411,120]
[399846213,1766734370462,-162.10124311,0.000411,120]
[399846214,1766734370472,-162.10124311,0.000411,120]
[399846215,1766734370482,-162.1,0.000411,120]
[399846216,1766734370492,-153.59333335,0.000411,120]
[399846217,1766734370501,-153.59333335,0.000411,120]
[399846218,1766734370511,-153.59,0.000411,120]
[399846219,1766734370522,-152.79,0.00041147,120]
[399846220,1766734370531,-1002.60542121,0.000412,120]
[399846221,1766734370542,-152.79,0.00041247,120]
[399846222,1766734370551,-200.0,0.0004125,120]
[399846223,1766734370562,-269.54361,0.00041288,30]
[399846224,1766734370572,-465.05,0.0004133,30]
[399846225,1766734370581,-465.05,0.0004133,30]
[399846226,1766734370591,-465.05,0.0004133,30]
[399846227,1766734370601,-465.05,0.0004133,30]
[399846228,1766734370611,-152.79,0.00041347,120]
[399846229,1766734370621,-103034.23554332,0.000414,30]
[399846230,1766734370631,-152.79,0.00041447,120]
[399846231,1766734370642,-269.54361,0.00041488,30]
[399846232,1766734370652,-354.35678556,0.000415,30]
[399846233,1766734370662,-500.0,0.000415,120]
[399846234,1766734370672,-152.79,0.00041547,120]
[399846235,1766734370682,-150.0,0.0004158,120]
[399846236,1766734370692,-163.0,0.000416,120]
[399846237,1766734370702,-178.57,0.0004164,30]
[399846238,1766734370712,-178.57,0.0004164,30]
[399846239,1766734370722,-178.57,0.0004164,30]
[399846240,1766734370731,-178.57,0.0004164,30]
[399846241,1766734370741,-178.57,0.0004164,30]
[399846242,1766734370751,-178.47,0.0004164,30]
[399846243,1766734370761,-152.79,0.00041647,120]
[399846244,1766734370770,-465.05,0.00041659,30]
[399846245,1766734370780,-465.05,0.00041659,30]
[399846246,1766734370789,-465.05,0.00041659,30]
[399846247,1766734370799,-465.05,0.00041659,30]
[399846248,1766734370808,-465.05,0.00041659,30]
[399846249,1766734370818,-465.05,0.00041659,30]
[399846250,1766734370827,-465.05,0.00041659,30]
[399846251,1766734370838,-465.05,0.00041659,30]
[399846252,1766734370847,-465.05,0.00041659,30]
[399846253,1766734370857,-269.54361,0.00041688,30]
[399846254,1766734370867,-184.0,0.000417,120]
[399846255,1766734370876,-152.79,0.00041747,120]
[399846256,1766734370886,-222.78077408,0.000418,120]
[399846257,1766734370896,-200.0,0.0004184,120]
[399846258,1766734370905,-152.79,0.00041847,120]
[399846259,1766734370915,-269.54361,0.00041888,30]
[399846260,1766734370925,-130000.0,0.000419,14]
[399846261,1766734370935,-1323.98179059,0.00041908,14]
[399846262,1766734370945,-1323.98179055,0.00041908,14]
[399846263,1766734370955,-1323.98179055,0.00041908,14]
[399846264,1766734370964,-1323.98179055,0.00041908,14]
[399846265,1766734370974,-1323.98179055,0.00041908,14]
[399846266,1766734370983,-1323.98179055,0.00041908,14]
[399846267,1766734370993,-1323.98179055,0.00041908,14]
[399846268,1766734371003,-1323.98179055,0.00041908,14]
[399846269,1766734371013,-1323.98179055,0.00041908,14]
[399846270,1766734371022,-1323.98179055,0.00041908,14]
[399846271,1766734371031,-1323.98179055,0.00041908,14]
[399846272,1766734371041,-1323.98179055,0.00041908,14]
[399846273,1766734371050,-1323.98179055,0.00041908,14]
[399846274,1766734371060,-1323.98179055,0.00041908,14]
[399846275,1766734371070,-359.84,0.00041914,30]
[399846276,1766734371080,-152.79,0.00041947,120]
[399846277,1766734371090,-2000.0,0.00041998,31]
[399846278,1766734371100,-224.3141436,0.00041999,120]
[399846279,1766734371109,-50000.0,0.00042,22]
[399846280,1766734371119,-50000.0,0.00042,42]
[399846281,1766734371129,-50000.0,0.00042,32]
[399846282,1766734371142,-1543.0,0.00042,2]
[399846283,1766734371152,-271.69375874,0.00042,5]
[399846284,1766734371162,-3569.96912511,0.00042,30]
[399846285,1766734371171,-436.98435311,0.00042,120]
[399846286,1766734371182,-18779.13037978,0.00042,120]
[399846287,1766734371193,-423.5471165,0.00042,120]
[399846288,1766734371203,-200.0,0.00042,120]
[399846289,1766734371214,-208500.0,0.00042,120]
[399846290,1766734371223,-2160.98551871,0.00042,30]
[399846291,1766734371233,-302.0,0.00042,60]
[399846292,1766734371243,-150.0,0.00042,120]
[399846293,1766734371252,-210.3253333,0.00042,120]
[399846294,1766734371262,-500.0,0.00042,65]
[399846295,1766734371272,-1358.50389433,0.00042,30]
[399846296,1766734371282,-1005.38865665,0.00042,120]
[399846297,1766734371292,-254.7344881,0.00042,120]
[399846298,1766734371302,-321.62614446,0.00042,120]
[399846299,1766734371311,-902.22,0.00042,120]
[399846300,1766734371321,-1046.89524791,0.00042,120]
[399846301,1766734371330,-210.0,0.00042,30]
[399846302,1766734371340,-155.0,0.00042,30]
[399846303,1766734371350,-150.0,0.00042,60]
[399846304,1766734371359,-500.0,0.00042,120]
[399846305,1766734371369,-253.0,0.00042,37]
[399846306,1766734371379,-1355.60333148,0.0004201,2]
[399846307,1766734371389,-152.79,0.00042047,120]
[399846308,1766734371399,-208.92272806,0.0004207,120]
[399846309,1766734371408,-582.0,0.000421,3]
[399846310,1766734371418,-152.79,0.00042147,120]
[399846311,1766734371429,-3018.8,0.00042191,120]
[399846312,1766734371438,-5598.98141806,0.000422,2]
[399846313,1766734371448,-163.0,0.000422,120]
[399846314,1766734371458,-184.0,0.000422,120]
[399846315,1766734371469,-453.0,0.0004224,90]
[399846316,1766734371479,-152.79,0.00042247,120]
[399846317,1766734371489,-170.0,0.0004231,90]
[399846318,1766734371499,-1040.22244768,0.0004231,120]
[399846319,1766734371509,-251.34154288,0.00042313,120]
[399846320,1766734371519,-152.79,0.00042347,120]
[399846321,1766734371529,-152.79,0.00042447,120]
[399846322,1766734371802,-3161.08363915,0.00042475,120]
[399846323,1766734371813,-465.05,0.00042481,30]
[399846324,1766734371823,-465.05,0.00042481,30]
[399846325,1766734371833,-465.05,0.00042481,30]
[399846326,1766734371842,-465.05,0.00042481,30]
[399846327,1766734371852,-465.05,0.00042481,30]
[399846328,1766734371863,-465.05,0.00042481,30]
[399846329,1766734371872,-465.05,0.00042481,30]
[399846330,1766734371882,-465.05,0.00042481,30]
[399846331,1766734371892,-465.05,0.00042481,30]
[399846332,1766734371901,-465.05,0.00042481,30]
[399846333,1766734371911,-465.05,0.00042481,30]
[399846334,1766734371920,-584.85,0.00042481,30]
[399846335,1766734371932,-465.05,0.00042481,30]
[399846336,1766734371941,-465.05,0.00042481,30]
[399846337,1766734371951,-465.05,0.00042481,30]
[399846338,1766734371961,-465.05,0.00042481,30]
[399846339,1766734371971,-465.05,0.00042481,30]
[399846340,1766734371981,-465.05,0.00042481,30]
[399846341,1766734371992,-465.05,0.00042481,30]
[399846342,1766734372003,-465.05,0.00042481,30]
[399846343,1766734372012,-462.89,0.00042481,30]
[399846344,1766734372022,-465.05,0.00042481,30]
[399846345,1766734372032,-2500.0,0.000425,120]
[399846346,1766734372042,-823.1044171,0.000425,120]
[399846347,1766734372052,-500.0,0.000425,120]
[399846348,1766734372062,-2129.96,0.000425,10]
[399846349,1766734372072,-180.71068209,0.00042538,120]
[399846350,1766734372082,-152.79,0.00042547,120]
[399846351,1766734372092,-150.0,0.000426,120]
[399846352,1766734372102,-150.0,0.00042639,60]
[399846353,1766734372112,-150.0,0.00042639,60]
[399846354,1766734372122,-152.79,0.00042647,120]
[399846355,1766734372131,-4758780.44585176,0.00042698,30]
[399846356,1766734372415,-447.963702,0.00017,2]
[399846357,1766734372426,-447.963702,0.00017,2]
[399846358,1766734372437,-447.963702,0.00017,2]
[399846359,1766734372448,-447.963702,0.00017,2]
[399846360,1766734372458,-191.234946,0.00027397,7]
[399846361,1766734372468,-2495.110246,0.00027397,7]
[399846362,1766734372480,-79.22065,0.00027397,7]
[399846363,1766734372491,-191.234946,0.00027397,7]
[399846364,1766734372501,-44.81707569,0.00027397,7]
[399846366,1766734413599,82003.96314,0.00030136,120]
[399846373,1766734533009,234.0,0.0003,120]
[399846384,1766735170573,200.0,0.00030137,120]
[399846390,1766735431472,-429.925,0.00013586,2]
[399846391,1766735431483,-262.0,0.00013586,2]
[399846392,1766735431494,-195.0,0.0001363,2]
[399846393,1766735431505,-173.05731677,0.00013663,2]
[399846394,1766735431516,-1200.0,0.00013748,2]
[399846395,1766735431526,-300.0,0.00013748,2]
[399846396,1766735431536,-300.0,0.00013748,2]
[399846397,1766735431546,-1200.0,0.00013748,2]
[399846398,1766735431557,-2120.50005521,0.00013749,2]
[399846399,1766735431570,-379.49994479,0.00013749,2]
[399846400,1766735431580,-2500.0,0.00013749,2]
[399846401,1766735431591,-500.0,0.00013761,2]
[399846402,1766735431601,-500.0,0.00013761,2]
[399846403,1766735431610,-396300.52005521,0.00013762,2]
[399846469,1766735437636,-168.18799133,0.00013663,2]
[399846470,1766735437648,-500.0,0.00013761,2]
[399846471,1766735437659,-500.0,0.00013761,2]
[399846472,1766735437670,-500.0,0.00013761,2]
[399846473,1766735437680,-500.0,0.00013761,2]
[399846474,1766735437690,-500.0,0.00013761,2]
[399846475,1766735437701,-500.0,0.00013761,2]
[399846476,1766735437711,-500.0,0.00013761,2]
[399846477,1766735437721,-500.0,0.00013761,2]
[399846478,1766735437732,-500.0,0.00013761,2]
[399846479,1766735437743,-500.0,0.00013761,2]
[399846480,1766735437754,-500.0,0.00013761,2]
[399846481,1766735437764,-632.72240227,0.00013761,2]
[399846482,1766735437774,-500.0,0.00013761,2]
[399846483,1766735437784,-500.0,0.00013761,2]
[399846484,1766735437795,-500.0,0.00013761,2]
[399846485,1766735437805,-500.0,0.00013761,2]
[399846486,1766735437815,-500.0,0.00013761,2]
[399846487,1766735437825,-500.0,0.00013761,2]
[399846488,1766735437835,-500.0,0.00013761,2]
[399846489,1766735437846,-500.0,0.00013761,2]
[399846491,1766735437856,-500.0,0.00013761,2]
[399846493,1766735437866,-500.0,0.00013761,2]
[399846495,1766735437876,-14000.90169872,0.00013762,2]
[399846497,1766735437888,-15737.95680236,0.00013762,2]
[399846499,1766735437901,-5129.56695024,0.00013762,2]
[399846501,1766735437914,-2578.77249463,0.00013762,2]
[399846503,1766735437927,-5656.04468377,0.00013762,2]
[399846505,1766735437939,-409.44124769,0.00013762,2]
[399846507,1766735437955,-6058.19158,0.00013762,2]
[399846509,1766735439592,-1058.77624392,0.00013762,2]
[399846510,1766735439604,-553069.82824346,0.00013762,2]
[399846511,1766735439615,-4520.75561341,0.00013763,2]
[399846512,1766735439625,-164.6586,0.00013763,2]
[399846513,1766735439634,-380.499,0.00013763,2]
[399846514,1766735439645,-1112.08,0.00013812,2]
[399846515,1766735439656,-151.0,0.00013855,2]
[399846516,1766735439668,-151.0,0.00013855,2]
[399846517,1766735439679,-151.0,0.00013855,2]
[399846518,1766735439689,-151.0,0.00013855,2]
[399846519,1766735439700,-151.0,0.00013855,2]
[399846520,1766735439710,-151.0,0.00013855,2]
[399846521,1766735439721,-151.0,0.00013855,2]
[399846522,1766735439732,-151.0,0.00013855,2]
[399846523,1766735439742,-151.0,0.00013855,2]
[399846524,1766735439752,-151.0,0.00013855,2]
[399846525,1766735439762,-151.0,0.00013855,2]
[399846526,1766735439773,-151.0,0.00013855,2]
[399846527,1766735439784,-151.0,0.00013855,2]
[399846528,1766735439794,-151.0,0.00013855,2]
[399846529,1766735439804,-151.0,0.00013855,2]
[399846530,1766735439816,-151.0,0.00013855,2]
[399846531,1766735439826,-466.61,0.00013855,2]
[399846532,1766735439837,-150.0,0.00013859,2]
[399846533,1766735439848,-500.0,0.00013862,2]
[399846534,1766735439859,-516.96732434,0.00013862,2]
[399846535,1766735439869,-510.57439861,0.00013862,2]
[399846536,1766735439880,-500.0,0.00013862,2]
[399846537,1766735439891,-500.0,0.00013862,2]
[399846538,1766735439902,-457.42264736,0.00013862,2]
[399846539,1766735439913,-500.0,0.00013862,2]
[399846540,1766735439923,-500.0,0.00013862,2]
[399846541,1766735439934,-500.0,0.00013862,2]
[399846542,1766735439945,-500.0,0.00013862,2]
[399846543,1766735439956,-500.0,0.00013862,2]
[399846544,1766735439967,-500.0,0.00013862,2]
[399846545,1766735439979,-1000.0,0.00013863,2]
[399846546,1766735439990,-33512.6718,0.00013863,2]
[399846547,1766735440001,-200.0,0.00013924,2]
[399846548,1766735440013,-466.61,0.00014129,2]
[399846549,1766735440023,-500.0,0.00014136,2]
[399846550,1766735440034,-466.61,0.00014403,2]
[399846551,1766735440044,-500.0,0.0001441,2]
[399846552,1766735440055,-466.61,0.00014677,2]
[399846553,1766735440065,-500.0,0.00014684,2]
[399846554,1766735440076,-999.0,0.00014829,3]
[399846556,1766735440086,-250.0,0.00014919,2]
[399846558,1766735440097,-150.99,0.00014945,2]
[399846559,1766735440107,-9999.99,0.00014945,2]
[399846561,1766735440117,-499.99,0.00014945,2]
[399846562,1766735440128,-150.99,0.00014945,2]
[399846563,1766735440139,-9999.99,0.00014945,2]
[399846564,1766735440150,-9999.99,0.00014945,2]
[399846565,1766735440517,-1363.21598757,0.00014945,4]
[399846566,1766735440548,-195.0,0.00014945,2]
[399846567,1766735440559,-2500.0,0.00014945,2]
[399846568,1766735440569,-300.0,0.00014945,2]
[399846569,1766735440580,-600.0,0.00014945,2]
[399846570,1766735440590,-600.0,0.00014945,2]
[399846571,1766735440601,-250.0,0.00014945,2]
[399846572,1766735440612,-300.0,0.00014945,2]
[399846573,1766735440622,-300.0,0.00014945,2]
[399846574,1766735440632,-300.0,0.00014945,2]
[399846575,1766735440643,-419.89195242,0.00014945,2]
[399846576,1766735440656,-401.69248529,0.00014945,2]
[399846577,1766735440668,-1273.17751471,0.00014945,2]
[399846578,1766735440679,-250.0,0.00014945,2]
[399846579,1766735440689,-300.0,0.00014945,2]
[399846580,1766735440699,-466.64,0.00014951,2]
[399846581,1766735440710,-500.0,0.00014958,2]
[399846582,1766735440720,-255.0,0.00014982,2]
[399846583,1766735440731,-1200.0,0.00015065,2]
[399846584,1766735440742,-420.0,0.00015065,2]
[399846585,1766735440753,-1680.0,0.00015123,2]
[399846586,1766735440764,-9999.99,0.00015139,2]
[399846587,1766735440774,-151.0,0.00015169,2]
[399846588,1766735440784,-500.0,0.00015232,2]
[399846589,1766735440795,-166.66,0.00015232,2]
[399846590,1766735440805,-500.97468211,0.00015456,2]
[399846591,1766735440815,-500.0,0.00015506,2]
[399846592,1766735440826,-166.66,0.00015735,2]
[399846593,1766735440836,-558.29393802,0.0001578,2]
[399846594,1766735440846,-3463.90788805,0.00015878,2]
[399846595,1766735440857,-168.0,0.00016006,2]
[399846596,1766735440867,-168.0,0.00016011,2]
[399846597,1766735440877,-168.0,0.00016058,2]
[399846598,1766735440889,-168.40038853,0.00016183,2]
[399846599,1766735440900,-500.89852069,0.00016183,2]
[399846600,1766735440910,-206.77102158,0.00016183,2]
[399846601,1766735440922,-500.0,0.00016183,2]
[399846602,1766735440932,-500.88737108,0.00016183,2]
[399846603,1766735440942,-501.0445462,0.00016183,2]
[399846604,1766735440952,-160.69712544,0.00016183,2]
[399846605,1766735440963,-331.00488176,0.00016183,2]
[399846606,1766735440973,-590.62865017,0.00016183,2]
[399846607,1766735440983,-500.0,0.00016183,2]
[399846608,1766735440993,-500.0,0.00016183,2]
[399846609,1766735441003,-230.98283811,0.00016183,2]
[399846610,1766735441013,-200.27562112,0.00016183,2]
[399846611,1766735441023,-333.75918667,0.00016183,2]
[399846612,1766735441033,-360.0,0.00016201,2]
[399846613,1766735441043,-166.66,0.00016238,2]
[399846614,1766735441053,-168.0,0.00016241,2]
[399846615,1766735441063,-168.0,0.00016369,2]
[399846616,1766735441073,-168.0,0.00016401,2]
[399846617,1766735441084,-168.0,0.00016408,2]
[399846618,1766735441094,-500.0,0.00016438,2]
[399846619,1766735441105,-198.64860812,0.00016438,2]
[399846620,1766735441115,-500.0,0.00016438,2]
[399846621,1766735441125,-500.0,0.00016438,2]
[399846622,1766735441136,-500.0,0.00016438,2]
[399846623,1766735441146,-500.0,0.00016438,2]
[399846624,1766735441157,-500.0,0.00016438,2]
[399846625,1766735441167,-500.0,0.00016438,2]
[399846626,1766735441177,-500.0,0.00016438,2]